fUSD/lending_fUSD_20251230
["ID","MTS","AMOUNT","RATE_DAILY","PERIOD"]
[400052282,1767053450338,-554.77,0.00040575,2]
[400052284,1767053450350,-203.1993,0.00041095,120]
[400052287,1767053450362,-67.38998716,0.0004143,14]
[400052289,1767053450374,-207.73447,0.00041488,30]
[400052291,1767053450385,-2909.47,0.000415,30]
[400052293,1767053450396,-1728.4011421,0.0004151,7]
[400052295,1767053450408,-532.0,0.00041564,30]
[400052297,1767053450418,-214.94,0.000416,14]
[400052300,1767053450430,-150.0,0.00041614,14]
[400052302,1767053450440,-207.73447,0.00041688,30]
[400052304,1767053450451,-161.0,0.000417,120]
[400052306,1767053450462,-152.0,0.000417,120]
[400052308,1767053450473,-604.77457401,0.00041705,2]
[400052310,1767053450484,-554.77,0.00041726,30]
[400052313,1767053450498,-554.77,0.00041726,30]
[400052315,1767053450509,-554.77,0.00041726,30]
[400052317,1767053450520,-554.77,0.00041726,30]
[400052319,1767053450531,-554.77,0.00041726,30]
[400052321,1767053450542,-554.77,0.00041726,30]
[400052324,1767053450553,-554.77,0.00041726,30]
[400052325,1767053450563,-554.77,0.00041726,30]
[400052328,1767053450574,-554.77,0.00041726,30]
[400052330,1767053450584,-554.77,0.00041726,30]
[400052332,1767053450595,-554.77,0.00041726,30]
[400052334,1767053450606,-554.77,0.00041726,30]
[400052336,1767053450617,-399.61339534,0.00041726,30]
[400052339,1767053450633,-155.15660466,0.00041726,30]
[400052341,1767053450644,-554.77,0.00041726,30]
[400052343,1767053450654,-554.77,0.00041726,30]
[400052345,1767053450665,-554.77,0.00041726,30]
[400052347,1767053450675,-554.77,0.00041726,30]
[400052349,1767053450688,-1115.67,0.00041726,30]
[400052352,1767053450700,-200.0,0.00041765,120]
[400052354,1767053450710,-481.65,0.00041797,30]
[400052356,1767053450722,-481.65,0.00041797,30]
[400052358,1767053450733,-481.65,0.00041797,30]
[400052360,1767053450745,-481.65,0.00041797,30]
[400052362,1767053450756,-481.65,0.00041797,30]
[400052364,1767053450768,-481.65,0.00041797,30]
[400052367,1767053450779,-481.65,0.00041797,30]
[400052369,1767053450790,-481.65,0.00041797,30]
[400052371,1767053450801,-481.65,0.00041797,30]
[400052373,1767053450812,-481.65,0.00041797,30]
[400052375,1767053450824,-481.65,0.00041797,30]
[400052377,1767053450835,-481.65,0.00041797,30]
[400052379,1767053450847,-481.65,0.00041797,30]
[400052382,1767053450859,-481.65,0.00041797,30]
[400052384,1767053450870,-481.65,0.00041797,30]
[400052386,1767053450881,-481.65,0.00041797,30]
[400052388,1767053450892,-481.65,0.00041797,30]
[400052390,1767053450903,-481.65,0.00041797,30]
[400052392,1767053450914,-481.65,0.00041797,30]
[400052393,1767053450926,-1000.0,0.00041815,14]
[400052394,1767053450939,-1000.0,0.00041839,14]
[400052395,1767053450951,-163.0,0.00041854,11]
[400052396,1767053450962,-300.0,0.00041862,2]
[400052397,1767053450975,-1000.0,0.00041865,14]
[400052398,1767053450987,-207.73447,0.00041888,30]
[400052400,1767053450998,-200.0,0.00041918,10]
[400052402,1767053451010,-338.2114975,0.00041918,14]
[400052404,1767053451025,-150.0,0.00041932,14]
[400052406,1767053451036,-150.0,0.00041936,14]
[400052409,1767053451047,-532.0,0.00041993,30]
[400052412,1767053451069,-333.0,0.00042,30]
[400052415,1767053451087,-3828.3,0.00042,14]
[400052417,1767053451102,-1003.42791438,0.00042,2]
[400052419,1767053451115,-648.19474505,0.00042,120]
[400052422,1767053451127,-150.0,0.00042,120]
[400052424,1767053451140,-1000.0,0.00042,120]
[400052426,1767053451152,-1000.0,0.00042039,14]
[400052428,1767053451163,-1000.0,0.00042052,14]
[400052431,1767053451175,-150.0,0.00042055,30]
[400052433,1767053451185,-150.0,0.00042055,30]
[400052435,1767053451195,-150.0,0.00042055,30]
[400052437,1767053451204,-150.0,0.00042055,30]
[400052439,1767053451214,-150.0,0.00042055,30]
[400052441,1767053451223,-203.26,0.00042055,30]
[400052443,1767053451234,-150.0,0.00042055,14]
[400052445,1767053451243,-604.77457401,0.00042061,2]
[400052447,1767053451253,-150.0,0.00042071,30]
[400052449,1767053451263,-150.0,0.00042071,30]
[400052451,1767053451273,-150.0,0.00042071,30]
[400052453,1767053451283,-150.0,0.00042071,30]
[400052455,1767053451293,-150.0,0.00042071,30]
[400052457,1767053451303,-300.0,0.0004208,2]
[400052459,1767053451313,-300.0,0.00042108,2]
[400052461,1767053451323,-1000.0,0.00042116,14]
[400052463,1767053451336,-161.0,0.000422,120]
[400052465,1767053451348,-1000.0,0.00042215,14]
[400052467,1767053451357,-150.0,0.00042242,14]
[400052469,1767053451367,-150.0,0.00042246,14]
[400052471,1767053451379,-150.0,0.00042278,14]
[400052473,1767053451389,-151.42793174,0.00042283,14]
[400052475,1767053451399,-1000.0,0.00042288,14]
[400052477,1767053451411,-152.0,0.000423,120]
[400052480,1767053451427,-300.0,0.00042309,2]
[400052482,1767053451437,-150.0,0.00042336,60]
[400052484,1767053451447,-300.0,0.00042359,2]
[400052486,1767053451458,-10000.0,0.0004237,120]
[400052488,1767053451467,-10000.0,0.0004237,120]
[400052490,1767053451478,-10000.0,0.0004237,120]
[400052492,1767053451488,-10000.0,0.0004237,120]
[400052494,1767053451497,-10000.0,0.0004237,120]
[400052496,1767053451507,-604.77457401,0.00042416,2]
[400052498,1767053451516,-532.0,0.00042422,30]
[400052501,1767053451527,-300.0,0.00042462,2]
[400052503,1767053451537,-1000.0,0.00042481,14]
[400052505,1767053451546,-1000.0,0.00042484,14]
[400052507,1767053451556,-1000.0,0.0004249,14]
[400052509,1767053451565,-2909.47,0.000425,30]
[400052511,1767053451576,-303.65717965,0.000425,120]
[400052513,1767053451586,-554.77,0.0004251,30]
[400052515,1767053451597,-554.77,0.0004251,30]
[400052517,1767053451607,-554.77,0.0004251,30]
[400052519,1767053451618,-554.77,0.0004251,30]
[400052521,1767053451627,-554.77,0.0004251,30]
[400052523,1767053451638,-554.77,0.0004251,30]
[400052525,1767053451648,-554.77,0.0004251,30]
[400052527,1767053451657,-554.77,0.0004251,30]
[400052529,1767053451667,-554.77,0.0004251,30]
[400052531,1767053451677,-554.77,0.0004251,30]
[400052533,1767053451686,-554.77,0.0004251,30]
[400052535,1767053451695,-554.77,0.0004251,30]
[400052564,1767053452097,-554.77,0.0004251,30]
[400052567,1767053452117,-554.77,0.0004251,30]
[400052568,1767053452128,-554.77,0.0004251,30]
[400052570,1767053452138,-554.77,0.0004251,30]
[400052572,1767053452149,-554.77,0.0004251,30]
[400052574,1767053452159,-554.77,0.0004251,30]
[400052576,1767053452168,-300.0,0.0004252,2]
[400052577,1767053452178,-300.0,0.00042539,2]
[400052579,1767053452189,-213.10198802,0.00042568,120]
[400052581,1767053452199,-322.78,0.00042619,30]
[400052583,1767053452209,-243.05,0.00042631,120]
[400052585,1767053452219,-673.27,0.00042631,120]
[400052587,1767053452228,-1109.83550696,0.00042631,120]
[400052588,1767053452237,-246.58,0.00042631,120]
[400052590,1767053452247,-329.21811046,0.00042631,120]
[400052592,1767053452256,-1130.04990776,0.00042631,120]
[400052594,1767053452266,-1114.10651303,0.00042631,120]
[400052595,1767053452276,-555.96261023,0.00042631,120]
[400052597,1767053452285,-249.59,0.00042631,120]
[400052599,1767053452295,-680.16,0.00042631,120]
[400052601,1767053452304,-402.1100227,0.00042631,120]
[400052602,1767053452314,-366.45119922,0.00042631,120]
[400052604,1767053452324,-519.84,0.00042631,120]
[400052606,1767053452336,-663.78,0.00042631,120]
[400052608,1767053452349,-300.300735,0.00042636,112]
[400052609,1767053452359,-300.0,0.00042649,2]
[400052611,1767053452370,-661.7885025,0.00042668,14]
[400052613,1767053452379,-300.0,0.00042683,2]
[400052615,1767053452389,-150.0,0.000427,14]
[400052617,1767053452399,-940.07,0.00042707,30]
[400052619,1767053452411,-300.0,0.00042715,2]
[400052620,1767053452422,-150.0,0.00042716,14]
[400052622,1767053452432,-150.0,0.00042731,14]
[400052624,1767053452442,-250.0,0.0004274,10]
[400052626,1767053452451,-481.65,0.00042756,30]
[400052627,1767053452460,-481.65,0.00042756,30]
[400052629,1767053452470,-481.65,0.00042756,30]
[400052631,1767053452480,-481.65,0.00042756,30]
[400052633,1767053452490,-481.65,0.00042756,30]
[400052635,1767053452500,-481.65,0.00042756,30]
[400052636,1767053452509,-481.65,0.00042756,30]
[400052638,1767053452519,-481.65,0.00042756,30]
[400052640,1767053452529,-481.65,0.00042756,30]
[400052642,1767053452539,-481.65,0.00042756,30]
[400052644,1767053452549,-480.96,0.00042756,30]
[400052645,1767053452559,-481.65,0.00042756,30]
[400052647,1767053452569,-481.65,0.00042756,30]
[400052649,1767053452578,-481.65,0.00042756,30]
[400052651,1767053452587,-481.65,0.00042756,30]
[400052653,1767053452598,-481.65,0.00042756,30]
[400052654,1767053452608,-481.65,0.00042756,30]
[400052656,1767053452618,-481.65,0.00042756,30]
[400052658,1767053452627,-481.65,0.00042756,30]
[400052660,1767053452637,-481.65,0.00042756,30]
[400052662,1767053452646,-481.65,0.00042756,30]
[400052663,1767053452656,-481.65,0.00042756,30]
[400052665,1767053452666,-481.65,0.00042756,30]
[400052667,1767053452676,-481.65,0.00042756,30]
[400052669,1767053452686,-481.65,0.00042756,30]
[400052670,1767053452695,-481.65,0.00042756,30]
[400052672,1767053452704,-481.65,0.00042756,30]
[400052674,1767053452714,-481.65,0.00042756,30]
[400052676,1767053452724,-481.65,0.00042756,30]
[400052677,1767053452734,-478.10624806,0.0004277,3]
[400052679,1767053452744,-776.01950818,0.0004277,2]
[400052681,1767053452753,-776.01950817,0.00042771,2]
[400052683,1767053452763,-181.26891868,0.00042771,30]
[400052684,1767053452772,-6183.94064002,0.00042771,15]
[400052685,1767053452782,-776.01950817,0.00042771,2]
[400052686,1767053452791,-888.61892686,0.00042771,28]
[400052687,1767053452800,-604.77457401,0.00042771,2]
[400052688,1767053452810,-174.21462703,0.00042771,30]
[400052689,1767053452819,-164.8475687,0.00042771,2]
[400052690,1767053452830,-500.0,0.00042775,30]
[400052691,1767053452839,-500.0,0.00042775,30]
[400052692,1767053452850,-599.97,0.00042775,120]
[400052693,1767053452859,-157.07838369,0.00042776,9]
[400052694,1767053452868,-1000.0,0.00042781,2]
[400052695,1767053452878,-1000.0,0.00042782,14]
[400052697,1767053452888,-889.53158864,0.00042784,2]
[400052698,1767053452897,-150.0,0.00042793,2]
[400052700,1767053452907,-10000.0,0.00042794,120]
[400052702,1767053452916,-10000.0,0.00042794,120]
[400052704,1767053452926,-10000.0,0.00042794,120]
[400052706,1767053452935,-10000.0,0.00042794,120]
[400052708,1767053452945,-10000.0,0.00042794,120]
[400052710,1767053452954,-277.8,0.000428,26]
[400052712,1767053452964,-150.0,0.000428,59]
[400052714,1767053452975,-161.0,0.000428,120]
[400052716,1767053452984,-267.7,0.000428,120]
[400052718,1767053452994,-152.0,0.000428,120]
[400052720,1767053453004,-150.0,0.000428,120]
[400052722,1767053453014,-253.0,0.000428,40]
[400052724,1767053453024,-800.0,0.00042832,16]
[400052726,1767053453037,-227.00709792,0.00042832,16]
[400052728,1767053453047,-1000.0,0.00042837,14]
[400052730,1767053453057,-554.77,0.00042838,30]
[400052732,1767053453067,-532.0,0.0004285,30]
[400052734,1767053453077,-200.0,0.00042865,120]
[400052736,1767053453087,-3551.60044538,0.00042869,2]
[400052738,1767053453097,-801.758491,0.00042869,120]
[400052740,1767053453107,-801.758491,0.00042869,120]
[400052742,1767053453117,-801.758491,0.00042869,120]
[400052744,1767053453127,-801.758491,0.00042869,120]
[400052747,1767053453137,-820.97956977,0.0004287,2]
[400052753,1767053453190,-538.9845404,0.0004287,2]
[400053546,1767053693055,556.77,0.00030137,120]
[400053785,1767054631524,-501.86313919,0.00014,2]
[400053786,1767054631534,-151.53686081,0.0001435,2]
[400053787,1767054631557,-43.46313919,0.0001435,2]
[400053788,1767054631568,-168.43778274,0.0001435,2]
[400053789,1767054631578,-298.13686081,0.000147,2]
[400053790,1767054631588,-86.29102359,0.000154,2]
[400053791,1767054631601,-106.70897641,0.000154,2]
[400053792,1767054631611,-397.52589325,0.000154,2]
[400053793,1767054631624,-202.47410675,0.000154,2]
[400053794,1767054631633,-250.0,0.000154,2]
[400053795,1767054631643,-354.35076502,0.000154,2]
[400053796,1767054631660,-195.0,0.000154,2]
[400053797,1767054631670,-300.0,0.000154,2]
[400053798,1767054631680,-300.0,0.00015999,2]
[400053799,1767054631692,-13062.8945005,0.00016,4]
[400053800,1767054631748,-9715.77507099,0.00016,4]
[400053801,1767054631758,-168.0,0.00016417,2]
[400053802,1767054631768,-168.0,0.00016452,2]
[400053803,1767054631778,-168.0,0.00016546,2]
[400053804,1767054631788,-168.0,0.000167,2]
[400053805,1767054631797,-168.0,0.00016736,2]
[400053806,1767054631808,-168.0,0.00016751,2]
[400053807,1767054631818,-168.0,0.00016766,2]
[400053808,1767054631827,-1576.0637869,0.000169,2]
[400053810,1767054631837,-168.0,0.00016909,2]
[400053812,1767054631847,-169.29361719,0.00016911,2]
[400053814,1767054631856,-168.0,0.00016971,2]
[400053816,1767054631866,-500.0,0.00016999,2]
[400053818,1767054631879,-284.28656562,0.00016999,2]
[400053820,1767054631888,-191.06977914,0.00016999,2]
[400053822,1767054631898,-278.34888587,0.00016999,2]
[400053824,1767054631909,-394.90652473,0.00016999,2]
[400053825,1767054631918,-250.0,0.00017,2]
[400053826,1767054631928,-21029.15110404,0.00017,2]
[400053827,1767054631944,-574.9815518,0.00017,2]
[400053830,1767054637684,-1064.40417485,0.00017,2]
[400053831,1767054637791,-2053.89822111,0.00017,2]
[400053832,1767054637803,-3861.20467563,0.00017,2]
[400053833,1767054637815,-3987.72694341,0.00017,2]
[400053834,1767054637827,-10319.3334292,0.00017,2]
[400053835,1767054637897,-22907.5315,0.00017,2]
[400053836,1767054637909,-1036.70419547,0.00017,2]
[400053837,1767054637921,-6424.85942953,0.00017,2]
[400053838,1767054637946,-8700.10000013,0.00017,2]
[400053839,1767054637971,-1193.8,0.00017,2]
[400053840,1767054637984,-1295.24488642,0.00017,2]
[400054010,1767054639692,-19311.72427912,0.00017,2]
[400054013,1767054639705,-13473.14504517,0.00017,2]
[400054017,1767054639735,-3864.10583401,0.00017,2]
[400054019,1767054639747,-601.50114901,0.00017,2]
[400054023,1767054639778,-7938.34899041,0.00017,2]
[400054025,1767054639789,-518.41009963,0.00017,2]
[400054028,1767054639801,-1711.20790717,0.00017,2]
[400054030,1767054639812,-617.05038178,0.00017,2]
[400054032,1767054639828,-418.54789703,0.00017,2]
[400054034,1767054639839,-270.00005,0.00017,2]
[400054037,1767054639850,-336.3733244,0.00017,2]
[400054039,1767054639866,-33514.33954633,0.00017,2]
[400054055,1767054640051,-1876279.60795693,0.00017,2]
[400054056,1767054640061,-6354.84333717,0.00017,2]
[400054061,1767054640155,-4227.19490143,0.00017,2]
[400054063,1767054640167,-12074.09385564,0.00017,2]
[400054550,1767054644945,-151.0,0.00016424,2]
[400054552,1767054644955,-58.37783501,0.00016424,2]
[400054554,1767054644967,-92.62216499,0.00016424,2]
[400054556,1767054644978,-1202.31278564,0.00017,2]
[400054625,1767054645712,-4165.21187301,0.00017,2]
[400054627,1767054645725,-431.431,0.00017,2]
[400054663,1767054646064,-1832.60528,0.00017,2]
[400055211,1767055033756,155.03,8.338e-05,2]
[400055212,1767055033965,155.03,8.776e-05,2]
[400055213,1767055034167,155.03,9.215e-05,2]
[400055214,1767055034393,155.03,9.654e-05,2]
[400055215,1767055034594,155.03,0.00010093,2]
[400055216,1767055034891,155.03,0.00010532,2]
[400055217,1767055035115,155.03,0.00010971,2]
[400055218,1767055035310,155.03,0.00011409,2]
[400055219,1767055035500,20.02815409,0.00011848,2]
[400055220,1767055035524,135.00184591,0.00011848,2]
[400055221,1767055035735,155.03,0.00012287,2]
[400055222,1767055035914,155.03,0.00012726,2]
[400055482,1767055831675,-155.03,0.00013165,2]
[400055483,1767055831687,-134.11843026,0.00013603,2]
[400055484,1767055831699,-20.91156974,0.00013603,2]
[400055485,1767055831708,-300.0,0.00013865,2]
[400055486,1767055831718,-300.0,0.00013865,2]
[400055487,1767055831728,-155.03,0.00014042,2]
[400055488,1767055831737,-155.03,0.00014481,2]
[400055489,1767055831747,-155.03,0.0001492,2]
[400055490,1767055831757,-420.0,0.00015192,2]
[400055491,1767055831767,-150.0,0.00015288,2]
[400055492,1767055831778,-150.0,0.00015288,2]
[400055493,1767055831788,-150.0,0.00015288,2]
[400055494,1767055831798,-150.0,0.00015288,2]
[400055495,1767055831808,-62.41497968,0.00015288,2]
[400055496,1767055831831,-87.58502032,0.00015288,2]
[400055497,1767055831841,-150.0,0.00015288,2]
[400055498,1767055831851,-150.0,0.00015288,2]
[400055499,1767055831861,-150.0,0.00015288,2]
[400055500,1767055831871,-150.0,0.00015288,2]
[400055501,1767055831880,-150.0,0.00015288,2]
[400055502,1767055831889,-150.0,0.00015288,2]
[400055503,1767055831904,-155.03,0.00015359,2]
[400055504,1767055831913,-200.0,0.00015455,2]
[400055505,1767055831923,-3966.24634577,0.00015587,2]
[400055506,1767055831935,-1431.68654969,0.00015587,2]
[400055508,1767055831946,-341.348914,0.00015587,2]
[400055511,1767055831970,-451.34819054,0.00015587,2]
[400055513,1767055831980,-155.03,0.00015798,2]
[400055515,1767055831990,-166.66,0.0001598,2]
[400055516,1767055832000,-516.88,0.00016012,2]
[400055518,1767055832010,-311.94,0.00016082,2]
[400055520,1767055832019,-151.0,0.00016089,2]
[400055522,1767055832029,-151.0,0.00016089,2]
[400055524,1767055832038,-150.0,0.00016137,2]
[400055526,1767055832048,-150.0,0.00016137,2]
[400055528,1767055832058,-167.51,0.00016157,2]
[400055530,1767055832068,-150.0,0.00016218,2]
[400055532,1767055832078,-155.03,0.00016236,2]
[400055534,1767055832087,-166.66,0.00016317,2]
[400055536,1767055832098,-166.66,0.00016653,2]
[400055538,1767055832107,-31.59477189,0.00016675,2]
[400055541,1767055832119,-123.43522811,0.00016675,2]
[400055543,1767055832128,-2290.18031173,0.000168,2]
[400055545,1767055832140,-2766.58027548,0.000168,2]
[400055547,1767055832149,-1584.973,0.00016899,2]
[400055549,1767055832159,-500.0,0.00016899,2]
[400055551,1767055832168,-500.0,0.00016899,2]
[400055553,1767055832179,-500.0,0.00016899,2]
[400055555,1767055832188,-500.0,0.00016899,2]
[400055557,1767055832197,-250.0,0.00016899,2]
[400055559,1767055832207,-500.0,0.00016899,2]
[400055561,1767055832217,-200.0,0.00016899,2]
[400055564,1767055832227,-500.0,0.00016899,2]
[400055565,1767055832237,-500.0,0.00016899,2]
[400055568,1767055832246,-500.0,0.00016899,2]
[400055570,1767055832261,-500.0,0.00016899,2]
[400055572,1767055832270,-500.0,0.00016899,2]
[400055574,1767055832281,-167.89586121,0.00016899,2]
[400055576,1767055832290,-500.0,0.00016899,2]
[400055578,1767055832301,-500.0,0.00016899,2]
[400055580,1767055832311,-500.0,0.00016899,2]
[400055582,1767055832320,-500.0,0.00016899,2]
[400055584,1767055832330,-500.0,0.00016899,2]
[400055586,1767055832340,-500.0,0.00016899,2]
[400055589,1767055832351,-500.0,0.00016899,2]
[400055591,1767055832361,-9426.22162264,0.000169,2]
[400055593,1767055832373,-573.77837736,0.000169,2]
[400055595,1767055832383,-154.0,0.000169,2]
[400055597,1767055832392,-232.27152977,0.000169,2]
[400055599,1767055832401,-169.29361718,0.000169,2]
[400055601,1767055832411,-154.0,0.000169,2]
[400055603,1767055832420,-3063.40715694,0.000169,2]
[400055605,1767055832429,-214.15037368,0.000169,2]
[400055607,1767055832439,-329.29974852,0.000169,2]
[400055609,1767055832449,-880.98881823,0.000169,2]
[400055611,1767055832459,-201.59152471,0.000169,2]
[400055613,1767055832469,-157.07838369,0.00016911,2]
[400055615,1767055832479,-150.0,0.00016986,2]
[400055617,1767055832491,-275.26332277,0.00016986,2]
[400055619,1767055832504,-150.0,0.00016986,2]
[400055620,1767055832513,-150.0,0.00016986,2]
[400055621,1767055832523,-150.0,0.00016986,2]
[400055622,1767055832533,-150.0,0.00016986,2]
[400055623,1767055832543,-166.66,0.0001699,2]
[400055624,1767055832554,-300.0,0.00016999,2]
[400055625,1767055832564,-298.14306672,0.00016999,2]
[400055626,1767055832573,-224.51445513,0.00016999,2]
[400055627,1767055832583,-500.0,0.00016999,2]
[400055628,1767055832593,-418.24829348,0.00016999,2]
[400055629,1767055832602,-81069.46485292,0.00017,2]
[400055843,1767055837776,-236.1517,0.000168,2]
[400055844,1767055837787,-166.9303,0.00017,2]
[400055845,1767055837799,-1343.07308045,0.00017,2]
[400055846,1767055837810,-1316.2203478,0.00017,2]
[400055847,1767055837883,-2934.0,0.00017,2]
[400055848,1767055837895,-8713.1,0.00017,2]
[400055849,1767055837907,-513.46651266,0.00017,2]
[400056040,1767055839980,-5381.08095703,0.00017,2]
[400056042,1767055839993,-1882634.4512941,0.00017,2]
[400056053,1767055840091,-540558.40426608,0.00017,2]
[400056395,1767055843465,-250.0,0.00016625,2]
[400056396,1767055843475,-150.0,0.00016625,2]
[400056398,1767055843486,-178.21348603,0.00016652,2]
[400056400,1767055843496,-59852.02696229,0.00017,2]
[400056402,1767055843509,-282352.4160977,0.00017,2]
[400056404,1767055843519,-15210.0032312,0.00017,2]
[400056406,1767055843530,-250.0,0.00017,2]
[400056408,1767055843540,-200.0,0.00017,2]
[400056411,1767055843553,-168.0,0.00017152,2]
[400056412,1767055843562,-200.0,0.0001717,2]
[400056415,1767055843572,-165.2840729,0.00017307,2]
[400056417,1767055843583,-166.66,0.00017326,2]
[400056418,1767055843593,-200.0,0.00017342,2]
[400056421,1767055843603,-200.0,0.00017343,2]
[400056423,1767055843613,-168.0,0.00017442,2]
[400056425,1767055843623,-168.0,0.00017478,2]
[400056427,1767055843633,-200.0,0.00017515,2]
[400056429,1767055843644,-168.0,0.00017617,2]
[400056431,1767055843654,-168.0,0.00017629,2]
[400056433,1767055843663,-166.66,0.00017662,2]
[400056435,1767055843673,-200.0,0.0001769,2]
[400056437,1767055843683,-168.0,0.00017756,2]
[400056439,1767055843693,-168.0,0.00017783,2]
[400056441,1767055843703,-168.0,0.00017829,2]
[400056443,1767055843713,-3584.53505189,0.000179,2]
[400056445,1767055843723,-307.38042761,0.000179,2]
[400056447,1767055843733,-574.97833196,0.000179,2]
[400056449,1767055843743,-168.0,0.00017921,2]
[400056451,1767055843753,-168.0,0.0001798,2]
[400056453,1767055843762,-300.0,0.00017997,2]
[400056455,1767055843772,-148097.81842165,0.00017998,2]
[400056458,1767055843783,-151.0,0.00017998,2]
[400056460,1767055843793,-151.0,0.00017998,2]
[400056462,1767055843802,-151.0,0.00017998,2]
[400056464,1767055843812,-151.0,0.00017998,2]
[400056466,1767055843822,-151.0,0.00017998,2]
[400056468,1767055843831,-151.0,0.00017998,2]
[400056470,1767055843842,-151.0,0.00017998,2]
[400056472,1767055843851,-151.0,0.00017998,2]
[400056474,1767055843861,-151.0,0.00017998,2]
[400056476,1767055843870,-151.0,0.00017998,2]
[400056478,1767055843881,-151.0,0.00017998,2]
[400056509,1767055844165,-151.0,0.00017998,2]
[400056512,1767055844184,-151.0,0.00017998,2]
[400056514,1767055844194,-170.582746,0.00017998,2]
[400056516,1767055844204,-151.0,0.00017998,2]
[400056518,1767055844214,-151.0,0.00017998,2]
[400056520,1767055844223,-151.0,0.00017998,2]
[400056522,1767055844232,-338.276254,0.00017998,2]
[400056524,1767055844242,-338.276254,0.00017998,2]
[400056526,1767055844251,-338.276254,0.00017998,2]
[400056528,1767055844261,-338.276254,0.00017998,2]
[400056530,1767055844271,-409.630797,0.00017998,2]
[400056532,1767055844283,-409.630797,0.00017998,2]
[400056534,1767055844293,-409.630797,0.00017998,2]
[400056536,1767055844303,-409.630797,0.00017998,2]
[400056538,1767055844313,-288.792626,0.00017998,2]
[400056540,1767055844323,-151.0,0.00017998,2]
[400056542,1767055844333,-73587.79728934,0.00018,2]
[400056545,1767055844346,-70066.75372414,0.00018,2]
[400056547,1767055844358,-940.372799,0.00018,2]
[400056562,1767055844499,-150.0,0.00016625,2]
[400056564,1767055844510,-250.0,0.00016652,2]
[400056567,1767055844520,-897.78976233,0.00018,2]
[400056569,1767055844533,-324.97946918,0.00018,2]
[400056709,1767055845744,-871.1,0.00018,2]
[400056719,1767055845799,-248687.26759464,0.00018,2]
[400056721,1767055845809,-151.0,0.00018,2]
[400056723,1767055845820,-271.251734,0.00018,2]
[400056725,1767055845830,-151.0,0.00018,2]
[400056727,1767055845847,-151.0,0.00018,2]
[400056729,1767055845856,-151.0,0.00018,2]
[400056732,1767055845866,-151.0,0.00018,2]
[400056734,1767055845875,-151.0,0.00018,2]
[400056736,1767055845885,-151.0,0.00018,2]
[400056737,1767055845895,-151.0,0.00018,2]
[400056740,1767055845905,-151.0,0.00018,2]
[400056742,1767055845915,-338.276254,0.00018,2]
[400056744,1767055845924,-338.276254,0.00018,2]
[400056746,1767055845934,-338.276254,0.00018,2]
[400056748,1767055845944,-338.276254,0.00018,2]
[400056750,1767055845954,-409.630797,0.00018,2]
[400056752,1767055845963,-409.630797,0.00018,2]
[400056754,1767055845974,-409.630797,0.00018,2]
[400056756,1767055845984,-409.630797,0.00018,2]
[400056758,1767055845993,-151.0,0.00018,2]
[400056760,1767055846003,-162.88745,0.00018,2]
[400056762,1767055846012,-162.88745,0.00018,2]
[400056764,1767055846022,-162.88745,0.00018,2]